bitfinex/quotes_SOLUSD_20251124
["timestamp","ask_amount","ask_price","bid_price","bid_amount"]
[1763996765565,0.1,131.39,131.35,9.78882769]
[1763996765768,0.7,131.38,131.34,3.5]
[1763996765957,8.0910512,131.38,131.35,9.78882769]
[1763996766470,0.1,131.39,131.36,0.72]
[1763996766675,0.1,131.39,131.37,9.78882769]
[1763996767083,8.0910512,131.38,131.35,9.78882769]
[1763996767310,0.1,131.39,131.34,3.5]
[1763996767311,8.0910512,131.36,131.34,3.5]
[1763996767790,0.1,131.39,131.35,10.65098926]
[1763996767982,0.1,131.39,131.37,9.78882769]
[1763996768160,0.1,131.39,131.36,0.72]
[1763996768358,0.1,131.39,131.35,9.78882769]
[1763996768579,8.0910512,131.37,131.35,9.78882769]
[1763996768779,8.0910512,131.38,131.35,9.78882769]
[1763996769002,8.0910512,131.37,131.32,8.8110512]
[1763996769196,8.0910512,131.37,131.33,9.78882769]
[1763996769402,8.0910512,131.36,131.33,9.78882769]
[1763996769573,8.0910512,131.35,131.32,4.22]
[1763996769777,8.0910512,131.34,131.32,3.5]
[1763996770001,16.408864,131.39,131.33,9.78882769]
[1763996770306,0.1,131.39,131.33,10.50882769]
[1763996770467,8.0910512,131.38,131.35,9.78882769]
[1763996770874,0.1,131.39,131.36,4.22]
[1763996771390,8.0910512,131.38,131.36,3.5]
[1763996771581,8.0910512,131.37,131.34,9.78882769]
[1763996771898,0.1,131.39,131.35,3.5]
[1763996772102,8.0910512,131.37,131.35,3.5]
[1763996772273,8.0910512,131.36,131.35,3.5]
[1763996772673,8.0910512,131.36,131.31,9.78882769]
[1763996772674,8.7910512,131.36,131.31,3.5]
[1763996772873,8.0910512,131.34,131.31,4.22]
[1763996773071,16.308864,131.37,131.31,4.22]
[1763996773383,8.0910512,131.37,131.33,0.14216157]
[1763996773594,17.108864,131.39,131.33,0.14216157]
[1763996773901,8.0910512,131.37,131.33,0.14216157]
[1763996774075,8.1910512,131.39,131.35,9.93098926]
[1763996774274,8.0910512,131.38,131.35,13.28882769]
[1763996774703,8.0910512,131.38,131.35,14.00882769]
[1763996774997,0.1,131.39,131.36,0.72]
[1763996774998,8.1910512,131.39,131.36,0.72]
[1763996775204,8.0910512,131.38,131.35,14.00882769]
[1763996775401,8.0910512,131.36,131.35,3.5]
[1763996775600,8.0910512,131.36,131.3,0.72]
[1763996775781,8.0910512,131.34,131.31,9.78882769]
[1763996775982,8.0910512,131.32,131.3,3.5]
[1763996776192,8.0910512,131.33,131.3,3.5]
[1763996776405,8.0910512,131.36,131.32,9.78882769]
[1763996776583,8.0910512,131.37,131.32,17.87987889]
[1763996776783,8.0910512,131.36,131.32,10.50882769]
[1763996776984,8.0910512,131.36,131.32,0.86216157]
[1763996777182,8.0910512,131.35,131.32,0.72]
[1763996777387,8.0910512,131.34,131.31,9.78882769]
[1763996777687,8.0910512,131.37,131.32,8.0910512]
[1763996777897,8.0910512,131.34,131.31,10.50882769]
[1763996778111,0.7,131.38,131.3,3.5]
[1763996778112,8.0910512,131.33,131.3,3.5]
[1763996778295,8.0910512,131.31,131.3,3.5]
[1763996778483,0.7,131.37,131.3,3.5]
[1763996778686,12.63144981,131.32,131.3,3.5]
[1763996778889,12.63144981,131.31,131.26,3.5]
[1763996779188,12.63144981,131.29,131.26,4.22]
[1763996779683,12.63144981,131.3,131.26,4.22]
[1763996779880,12.63144981,131.31,131.27,10.50882769]
[1763996780391,12.63144981,131.31,131.28,0.72]
[1763996780610,12.63144981,131.29,131.27,9.78882769]
[1763996780911,12.63144981,131.28,131.26,3.5]
[1763996781122,12.63144981,131.29,131.26,3.5]
[1763996781296,12.63144981,131.28,131.25,0.72]
[1763996781498,12.63144981,131.28,131.24,13.28882769]
[1763996781812,12.63144981,131.26,131.24,3.5]
[1763996781989,0.7,131.33,131.25,0.72]
[1763996782186,12.63144981,131.29,131.25,10.50882769]
[1763996782386,12.63144981,131.28,131.24,13.28882769]
[1763996782805,12.63144981,131.31,131.27,9.78882769]
[1763996783110,12.63144981,131.32,131.27,23.1102775]
[1763996783314,0.7,131.33,131.27,10.47882769]
[1763996783614,2.09999999,131.39,131.3,12.63144981]
[1763996783615,0.7,131.38,131.3,12.63144981]
[1763996783816,12.63144981,131.35,131.31,13.32144981]
[1763996784000,17.008864,131.38,131.32,3.5]
[1763996784001,12.63144981,131.33,131.32,3.5]
[1763996784197,12.63144981,131.33,131.29,3.5]
[1763996784402,12.63144981,131.32,131.29,4.19]
[1763996784616,12.63144981,131.31,131.29,3.5]
[1763996785129,12.63144981,131.3,131.29,3.5]
[1763996785309,16.308864,131.37,131.29,3.5]
[1763996785310,0.7,131.31,131.29,3.5]
[1763996785502,12.63144981,131.3,131.26,13.28882769]
[1763996785696,12.63144981,131.3,131.26,13.97882769]
[1763996785895,12.63144981,131.31,131.27,10.47882769]
[1763996786091,12.63144981,131.33,131.29,9.78882769]
[1763996786290,16.308864,131.37,131.3,3.5]
[1763996786291,12.63144981,131.34,131.3,3.5]
[1763996786544,12.63144981,131.33,131.3,3.5]
[1763996786708,12.63144981,131.36,131.31,22.4202775]
[1763996787027,0.8,131.39,131.33,9.78882769]
[1763996787028,12.63144981,131.37,131.33,9.78882769]
[1763996787355,12.63144981,131.37,131.34,3.5]
[1763996787499,12.63144981,131.36,131.34,3.5]
[1763996787692,12.63144981,131.35,131.34,3.5]
[1763996787913,0.8,131.39,131.34,3.5]
[1763996788195,0.1,131.39,131.34,4.19]
[1763996788397,12.73144981,131.39,131.35,0.69]
[1763996788621,0.1,131.39,131.36,9.78882769]
[1763996789021,0.1,131.39,131.38,22.56243907]
[1763996789324,0.1,131.39,131.38,26.75243907]
[1763996789522,0.1,131.4,131.38,26.75243907]
[1763996789726,0.1,131.4,131.39,23.1102775]
[1763996790127,0.1,131.4,131.39,23.25243907]
[1763996790328,0.1,131.41,131.4,9.93098926]
[1763996790515,0.1,131.41,131.4,35.88388888]
[1763996790715,0.7,131.52,131.44,9.93098926]
[1763996790929,12.63144981,131.52,131.48,0.14216157]
[1763996791141,0.7,131.54,131.49,9.78882769]
[1763996791333,0.7,131.58,131.52,12.63144981]
[1763996791533,0.7,131.58,131.53,3.5]
[1763996791747,0.7,131.58,131.53,16.13144981]
[1763996791914,12.63144981,131.55,131.53,3.5]
[1763996792348,12.63144981,131.56,131.53,3.5]
[1763996792545,0.7,131.58,131.53,3.5]
[1763996792742,12.63144981,131.56,131.53,3.5]
[1763996793046,12.63144981,131.54,131.53,3.5]
[1763996793249,17.008864,131.55,131.49,3.5]
[1763996793441,12.63144981,131.5,131.49,3.5]
[1763996793828,13.33144981,131.5,131.45,3.5]
[1763996794034,12.63144981,131.47,131.45,3.5]
[1763996794233,12.63144981,131.46,131.4,13.32144981]
[1763996794419,12.63144981,131.42,131.39,3.5]
[1763996794751,12.63144981,131.4,131.39,3.5]
[1763996795117,13.33144981,131.4,131.35,3.5]
[1763996795319,12.63144981,131.37,131.35,3.5]
[1763996795638,12.63144981,131.36,131.35,3.5]
[1763996796014,5.49999999,131.45,131.35,3.5]
[1763996796015,100.0,131.56,131.35,16.82144981]
[1763996796350,12.63144981,131.39,131.35,4.19]
[1763996796538,12.63144981,131.37,131.35,4.19]
[1763996796742,12.63144981,131.39,131.35,4.19]
[1763996797052,12.63144981,131.38,131.35,3.5]
[1763996797229,12.63144981,131.37,131.35,3.5]
[1763996797432,12.63144981,131.37,131.27,50.0]
[1763996797433,12.63144981,131.36,131.25,0.69]
[1763996797637,12.63144981,131.31,131.27,12.63144981]
[1763996797836,16.308864,131.37,131.28,12.63144981]
[1763996798035,12.63144981,131.31,131.27,12.63144981]
[1763996798224,0.7,131.39,131.3,12.63144981]
[1763996798552,0.7,131.41,131.35,12.63144981]
[1763996798728,12.63144981,131.4,131.36,25.9202775]
[1763996798922,12.63144981,131.43,131.38,12.63144981]
[1763996799129,0.7,131.48,131.42,22.4202775]
[1763996799324,12.63144981,131.45,131.42,9.78882769]
[1763996799524,12.63144981,131.43,131.41,3.5]
[1763996799751,12.63144981,131.45,131.41,3.5]
[1763996799927,12.63144981,131.43,131.41,3.5]
[1763996800132,12.63144981,131.42,131.41,3.5]
[1763996800532,0.7,131.45,131.41,3.5]
[1763996800757,12.63144981,131.42,131.41,3.5]
[1763996801549,12.63144981,131.43,131.41,3.5]
[1763996801755,12.63144981,131.42,131.41,3.5]
[1763996802638,13.33144981,131.42,131.35,9.78882769]
[1763996802863,0.7,131.41,131.35,3.5]
[1763996803062,12.63144981,131.36,131.35,3.5]
[1763996803554,0.7,131.42,131.35,4.19]
[1763996803850,12.63144981,131.41,131.36,23.1102775]
[1763996804043,12.63144981,131.4,131.36,10.47882769]
[1763996804240,12.63144981,131.39,131.36,10.47882769]
[1763996804446,12.63144981,131.42,131.37,13.32144981]
[1763996804640,0.14216157,131.5,131.37,13.32144981]
[1763996804641,0.7,131.48,131.41,12.63144981]
[1763996804826,0.7,131.48,131.41,16.13144981]
[1763996805027,12.63144981,131.47,131.42,23.1102775]
[1763996805431,12.63144981,131.47,131.43,0.69]
[1763996805757,3.5,131.54,131.41,3.5]
[1763996805758,12.63144981,131.44,131.41,3.5]
[1763996806051,12.63144981,131.45,131.41,16.13144981]
[1763996806254,12.63144981,131.46,131.41,16.13144981]
[1763996806954,12.63144981,131.45,131.41,16.82144981]
[1763996807328,12.63144981,131.46,131.42,10.47882769]
[1763996807544,12.63144981,131.47,131.42,23.1102775]
[1763996807852,12.63144981,131.47,131.42,22.4202775]
[1763996808031,0.66,131.47,131.42,9.78882769]
[1763996808235,12.63144981,131.44,131.41,3.5]
[1763996809058,0.66,131.46,131.41,3.5]
[1763996809264,12.63144981,131.44,131.41,3.5]
[1763996809874,12.63144981,131.48,131.43,12.63144981]
[1763996810059,12.63144981,131.47,131.43,12.63144981]
[1763996810262,0.66,131.53,131.45,12.63144981]
[1763996810430,0.66,131.53,131.46,16.80144981]
[1763996810762,12.63144981,131.47,131.46,3.5]
[1763996811131,0.66,131.51,131.46,3.5]
[1763996811331,12.63144981,131.5,131.46,16.13144981]
[1763996811535,0.1,131.58,131.48,0.14216157]
[1763996811760,12.63144981,131.55,131.5,9.78882769]
[1763996811938,12.63144981,131.56,131.52,9.78882769]
[1763996812139,12.73144981,131.58,131.53,12.63144981]
[1763996812345,0.1,131.58,131.55,22.4202775]
[1763996812632,0.1,131.58,131.56,3.5]
[1763996813235,0.1,131.58,131.57,10.60098926]
[1763996813437,0.1,131.58,131.57,23.23243907]
[1763996813857,0.1,131.58,131.57,22.4202775]
[1763996814064,0.1,131.58,131.56,3.5]
[1763996814277,0.1,131.58,131.56,4.17]
[1763996814471,0.1,131.58,131.56,3.5]
[1763996814855,12.73144981,131.58,131.56,3.5]
[1763996815039,12.63144981,131.57,131.56,3.5]
[1763996816264,13.30144981,131.57,131.56,3.5]
[1763996816482,13.30144981,131.57,131.51,12.63144981]
[1763996816483,13.30144981,131.57,131.5,0.67]
[1763996816770,12.63144981,131.54,131.51,3.5]
[1763996817076,12.63144981,131.53,131.51,3.5]
[1763996817249,12.63144981,131.52,131.51,3.5]
[1763996818286,16.308864,131.57,131.51,4.17]
[1763996818580,12.63144981,131.53,131.51,3.5]
[1763996818938,12.73144981,131.58,131.51,4.17]
[1763996819143,12.63144981,131.54,131.51,3.5]
[1763996819588,12.63144981,131.53,131.51,3.5]
[1763996819792,12.63144981,131.55,131.51,3.5]
[1763996820074,12.63144981,131.55,131.51,4.17]
[1763996820250,12.63144981,131.55,131.52,0.67]
[1763996820974,12.63144981,131.53,131.51,3.5]
[1763996821268,12.63144981,131.52,131.51,3.5]
[1763996821472,12.63144981,131.55,131.51,4.17]
[1763996821848,0.77,131.58,131.51,4.17]
[1763996821849,12.63144981,131.53,131.51,3.5]
[1763996822353,12.63144981,131.54,131.52,10.45882769]
[1763996822544,12.63144981,131.55,131.52,10.45882769]
[1763996822745,0.1,131.58,131.53,0.81216157]
[1763996822945,0.1,131.66,131.58,9.78882769]
[1763996823171,0.1,131.66,131.6,9.78882769]
[1763996823344,0.1,131.66,131.6,22.4202775]
[1763996823345,12.63144981,131.64,131.6,22.4202775]
[1763996823658,12.73144981,131.66,131.62,9.78882769]
[1763996823972,12.63144981,131.64,131.63,3.5]
[1763996824768,13.30144981,131.64,131.6,3.5]
[1763996824951,12.63144981,131.62,131.6,3.5]
[1763996825274,12.63144981,131.65,131.61,10.60098926]
[1763996825575,12.63144981,131.63,131.61,9.78882769]
[1763996825775,0.1,131.66,131.61,10.45882769]
[1763996826082,0.1,131.66,131.63,9.78882769]
[1763996826083,12.73144981,131.66,131.63,9.78882769]
[1763996826401,0.1,131.66,131.63,9.78882769]
[1763996826563,0.1,131.66,131.64,0.67]
[1763996826886,0.1,131.66,131.65,9.93098926]
[1763996827050,0.67,131.75,131.65,22.56243907]
[1763996827250,12.63144981,131.71,131.67,0.14216157]
[1763996827584,12.63144981,131.68,131.66,3.5]
[1763996827768,16.308864,131.72,131.58,0.67]
[1763996827946,16.978864,131.72,131.62,9.78882769]
[1763996828150,0.67,131.74,131.66,22.4202775]
[1763996828349,0.67,131.78,131.69,9.78882769]
[1763996828547,12.63144981,131.7,131.67,3.5]
[1763996828780,16.308864,131.75,131.67,4.17]
[1763996828970,12.63144981,131.69,131.67,4.17]
[1763996829170,0.67,131.74,131.65,0.67]
[1763996829487,12.63144981,131.7,131.67,9.78882769]
[1763996829666,0.67,131.73,131.67,9.78882769]
[1763996829979,12.63144981,131.69,131.66,4.31216157]
[1763996830186,0.67,131.75,131.67,0.81216157]
[1763996830381,12.63144981,131.7,131.67,0.81216157]
[1763996830571,12.63144981,131.7,131.67,0.67]
[1763996830774,12.63144981,131.69,131.67,9.78882769]
[1763996830959,0.67,131.75,131.66,3.5]
[1763996831167,12.63144981,131.68,131.66,3.5]
[1763996831569,12.63144981,131.69,131.66,4.17]
[1763996831770,12.63144981,131.67,131.63,0.67]
[1763996832084,0.67,131.72,131.65,3.5]
[1763996833202,16.978864,131.72,131.65,3.5]
[1763996833356,12.63144981,131.66,131.65,3.5]
[1763996834453,12.63144981,131.68,131.65,4.17]
[1763996834858,12.63144981,131.68,131.65,3.5]
[1763996835077,0.67,131.71,131.65,4.17]
[1763996835477,0.67,131.71,131.65,3.5]
[1763996835478,12.63144981,131.67,131.65,3.5]
[1763996835660,12.63144981,131.66,131.62,0.67]
[1763996835973,12.63144981,131.65,131.63,3.5]
[1763996836380,12.63144981,131.65,131.63,4.17]
[1763996836589,0.67,131.68,131.63,4.17]
[1763996836590,12.63144981,131.68,131.64,23.0902775]
[1763996836896,12.63144981,131.7,131.65,12.77361138]
[1763996837099,12.63144981,131.7,131.65,13.44361138]
[1763996837406,12.63144981,131.7,131.66,0.67]
[1763996837573,12.63144981,131.71,131.67,9.78882769]
[1763996837782,12.63144981,131.7,131.68,3.5]
[1763996837973,12.63144981,131.72,131.68,4.17]
[1763996838191,12.63144981,131.7,131.68,3.5]
[1763996838379,12.63144981,131.69,131.68,3.5]
[1763996838981,0.67,131.71,131.65,0.67]
[1763996839184,16.978864,131.71,131.61,9.78882769]
[1763996839387,12.63144981,131.67,131.63,3.5]
[1763996839588,16.308864,131.73,131.63,3.5]
[1763996839796,0.67,131.66,131.63,3.5]
[1763996840305,0.67,131.66,131.61,3.5]
[1763996840607,8.0238116,131.62,131.61,3.5]
[1763996840968,0.67,131.62,131.61,3.5]
[1763996841197,0.67,131.62,131.49,36.32044323]
[1763996841198,16.7176232,131.62,131.52,0.67]
[1763996841403,16.7176232,131.62,131.47,18.26]
[1763996841404,8.0238116,131.6,131.53,3.5]
[1763996841696,0.67,131.61,131.53,11.5238116]
[1763996841884,8.0238116,131.59,131.54,8.6938116]
[1763996842086,8.0238116,131.57,131.53,3.5]
[1763996842286,8.0238116,131.58,131.54,4.17]
[1763996842590,8.0238116,131.59,131.55,9.78882769]
[1763996842978,8.0238116,131.59,131.55,10.45882769]
[1763996843309,8.0238116,131.58,131.55,10.45882769]
[1763996843710,0.72,131.58,131.55,9.78882769]
[1763996843912,0.72,131.58,131.47,18.26]
[1763996843913,8.0238116,131.56,131.49,0.67]
[1763996844112,0.72,131.57,131.52,3.5]
[1763996844283,0.72,131.56,131.52,3.5]
[1763996845130,0.72,131.56,131.47,18.26]
[1763996845408,8.0238116,131.49,131.48,9.78882769]
[1763996845584,8.0238116,131.49,131.47,3.5]
[1763996845781,8.0238116,131.48,131.47,3.5]
[1763996846183,0.72,131.51,131.47,4.17]
[1763996846184,8.0238116,131.51,131.47,4.17]
[1763996846412,8.0238116,131.5,131.47,3.5]
[1763996846621,8.0238116,131.49,131.47,3.5]
[1763996846825,8.0238116,131.48,131.42,0.67]
[1763996846992,0.72,131.5,131.43,3.5]
[1763996847194,24.3326756,131.52,131.44,8.0238116]
[1763996847195,8.0238116,131.49,131.44,8.0238116]
[1763996847394,8.0238116,131.49,131.46,9.93098926]
[1763996847590,16.308864,131.56,131.49,0.14216157]
[1763996847895,8.0238116,131.55,131.51,9.78882769]
[1763996848233,8.0238116,131.53,131.5,3.5]
[1763996848521,8.0238116,131.54,131.51,9.78882769]
[1763996848886,3.97524772,131.63,131.51,9.78882769]
[1763996848887,0.72,131.6,131.53,9.78882769]
[1763996849107,8.0238116,131.57,131.53,9.78882769]
[1763996849422,8.0238116,131.57,131.53,10.45882769]
[1763996849585,8.7438116,131.6,131.53,9.78882769]
[1763996849922,8.0238116,131.57,131.53,10.45882769]
[1763996850113,8.0238116,131.56,131.53,10.45882769]
[1763996850487,8.0238116,131.56,131.52,0.14216157]
[1763996850687,8.0238116,131.55,131.52,0.67]
[1763996850892,8.0238116,131.57,131.52,8.6938116]
[1763996851104,8.0238116,131.56,131.52,0.67]
[1763996851331,8.0238116,131.55,131.51,17.81263929]
[1763996851712,8.0238116,131.55,131.51,9.78882769]
[1763996851926,8.0238116,131.52,131.39,100.0]
[1763996852150,8.0238116,131.51,131.48,9.78882769]
[1763996852356,8.0238116,131.52,131.48,13.28882769]
[1763996852538,8.0238116,131.52,131.48,3.5]
[1763996852842,8.0238116,131.51,131.48,3.5]
[1763996853249,8.0238116,131.52,131.48,4.17]
[1763996853553,8.0238116,131.5,131.48,3.5]
[1763996853910,16.308864,131.57,131.48,3.5]
[1763996854117,0.72,131.56,131.51,8.0238116]
[1763996854661,0.72,131.56,131.51,18.48263929]
[1763996854841,8.0238116,131.52,131.48,3.5]
[1763996855012,8.0238116,131.53,131.49,9.78882769]
[1763996855412,8.0238116,131.51,131.48,3.5]
[1763996855836,8.0238116,131.5,131.48,3.5]
[1763996856432,8.0238116,131.51,131.48,3.5]
[1763996856824,8.0238116,131.5,131.48,3.5]
[1763996857019,8.0238116,131.49,131.48,3.5]
[1763996857639,0.72,131.53,131.48,3.5]
[1763996857818,0.72,131.57,131.48,3.5]
[1763996858014,8.0238116,131.52,131.48,3.5]
[1763996858347,8.0238116,131.59,131.52,0.14216157]
[1763996858536,8.0238116,131.59,131.53,4.17]
[1763996858720,8.0238116,131.59,131.54,8.0238116]
[1763996858922,8.0238116,131.6,131.56,8.0238116]
[1763996859421,8.0238116,131.58,131.52,0.14216157]
[1763996859747,8.0238116,131.57,131.53,3.5]
[1763996860244,8.0238116,131.57,131.53,12.1938116]
[1763996860555,8.7438116,131.59,131.54,8.6938116]
[1763996860720,8.0238116,131.58,131.53,11.5238116]
[1763996861050,8.0238116,131.56,131.53,3.5]
[1763996861351,8.0238116,131.55,131.53,3.5]
[1763996861551,8.0238116,131.54,131.53,3.5]
[1763996861846,0.72,131.59,131.53,11.5238116]
[1763996862143,0.72,131.62,131.56,8.0238116]
[1763996862319,8.0238116,131.62,131.58,9.78882769]
[1763996862519,8.0238116,131.61,131.59,3.5]
[1763996863221,8.0238116,131.6,131.59,3.5]
[1763996863420,8.7438116,131.6,131.56,3.5]
[1763996863719,8.0238116,131.57,131.56,3.5]
[1763996863922,1.99999999,131.65,131.57,0.67]
[1763996863923,0.72,131.64,131.57,0.67]
[1763996864146,8.0238116,131.63,131.58,8.0238116]
[1763996864336,8.0238116,131.59,131.56,3.5]
[1763996864540,0.72,131.62,131.56,3.5]
[1763996864541,8.0238116,131.58,131.56,3.5]
[1763996864850,8.0238116,131.57,131.56,3.5]
[1763996865043,8.0238116,131.61,131.57,0.67]
[1763996865346,8.0238116,131.62,131.57,8.6938116]
[1763996865723,8.0238116,131.63,131.58,8.6938116]
[1763996865916,8.0238116,131.63,131.59,8.0238116]
[1763996866116,8.7438116,131.64,131.6,8.0238116]
[1763996866355,0.72,131.69,131.63,8.0238116]
[1763996866527,8.0238116,131.68,131.64,8.0238116]
[1763996866723,8.0238116,131.67,131.62,0.14216157]
[1763996866926,8.0238116,131.67,131.63,9.78882769]
[1763996867245,8.0238116,131.68,131.64,0.69]
[1763996867456,0.69,131.71,131.65,9.78882769]
[1763996867752,8.0238116,131.67,131.66,3.5]
[1763996868732,8.7138116,131.67,131.66,3.5]
[1763996868932,8.7138116,131.67,131.6,13.28882769]
[1763996869163,0.69,131.67,131.61,8.0238116]
[1763996869347,8.0238116,131.66,131.63,9.78882769]
[1763996869655,0.69,131.7,131.63,17.81263929]
[1763996869857,8.0238116,131.68,131.63,17.81263929]
[1763996870026,8.0238116,131.68,131.65,9.78882769]
[1763996870224,8.0238116,131.68,131.65,13.28882769]
[1763996870421,8.0238116,131.67,131.65,3.5]
[1763996870670,8.0238116,131.66,131.62,9.78882769]
[1763996870840,0.69,131.72,131.62,9.78882769]
[1763996870841,8.0238116,131.64,131.62,3.5]
[1763996871030,8.0238116,131.63,131.62,3.5]
[1763996871225,16.998864,131.67,131.62,3.5]
[1763996871428,8.0238116,131.63,131.62,3.5]
[1763996872028,8.7138116,131.63,131.56,8.7138116]
[1763996872356,8.0238116,131.6,131.57,3.5]
[1763996872534,8.0238116,131.59,131.57,3.5]
[1763996872732,8.0238116,131.58,131.57,3.5]
[1763996872935,0.66,131.64,131.57,3.5]
[1763996873150,8.0238116,131.58,131.57,3.5]
[1763996873323,0.66,131.61,131.57,3.5]
[1763996873538,8.0238116,131.58,131.57,3.5]
[1763996873728,8.0238116,131.6,131.57,3.5]
[1763996873930,8.0238116,131.63,131.58,17.81263929]
[1763996874156,8.0238116,131.62,131.58,10.45882769]
[1763996874360,8.0238116,131.63,131.58,18.48263929]
[1763996874528,8.0238116,131.65,131.6,17.81263929]
[1763996874732,8.0238116,131.64,131.6,9.78882769]
[1763996874951,8.0238116,131.63,131.59,0.67]
[1763996875162,8.0238116,131.62,131.58,9.78882769]
[1763996875366,0.66,131.66,131.6,9.78882769]
[1763996875571,8.0238116,131.64,131.6,9.78882769]
[1763996875771,8.0238116,131.61,131.58,9.78882769]
[1763996875929,8.0238116,131.6,131.57,3.5]
[1763996877150,8.0238116,131.61,131.57,3.5]
[1763996877352,8.0238116,131.59,131.57,3.5]
[1763996877732,8.0238116,131.6,131.57,4.17]
[1763996877927,0.66,131.64,131.58,9.78882769]
[1763996878128,8.0238116,131.61,131.57,3.5]
[1763996878343,8.0238116,131.61,131.57,11.5238116]
[1763996878543,8.0238116,131.63,131.58,18.48263929]
[1763996878942,8.0238116,131.62,131.58,10.45882769]
[1763996879157,8.0238116,131.6,131.57,3.5]
[1763996880243,8.0238116,131.61,131.57,4.17]
[1763996880442,0.66,131.64,131.57,12.1938116]
[1763996880660,8.0238116,131.6,131.57,3.5]
[1763996880855,0.66,131.64,131.57,3.5]
[1763996881056,16.308864,131.65,131.58,9.78882769]
[1763996881233,0.66,131.63,131.54,0.67]
[1763996881439,0.66,131.63,131.54,8.6938116]
[1763996881632,0.66,131.66,131.54,18.06086445]
[1763996881841,0.66,131.66,131.6,9.78882769]
[1763996882152,16.308864,131.65,131.6,3.5]
[1763996882337,8.0238116,131.61,131.56,11.5238116]
[1763996882543,8.0238116,131.61,131.57,9.78882769]
[1763996882743,8.0238116,131.6,131.56,4.17]
[1763996883042,8.0238116,131.61,131.57,10.60098926]
[1763996883256,8.0238116,131.63,131.59,9.78882769]
[1763996883457,8.0238116,131.64,131.59,17.81263929]
[1763996883663,8.0238116,131.63,131.59,10.45882769]
[1763996883979,8.0238116,131.63,131.59,9.78882769]
[1763996884133,8.0238116,131.63,131.57,10.45882769]
[1763996884134,8.0238116,131.62,131.57,10.45882769]
[1763996884339,8.0238116,131.61,131.57,10.45882769]
[1763996884538,0.66,131.62,131.57,9.78882769]
[1763996884751,8.0238116,131.61,131.57,10.45882769]
[1763996885165,0.66,131.6,131.56,3.5]
[1763996885366,16.308864,131.54,131.45,8.0238116]
[1763996885567,8.0238116,131.48,131.44,0.67]
[1763996885864,0.66,131.53,131.44,12.1938116]
[1763996886063,16.308864,131.56,131.47,8.0238116]
[1763996886368,8.0238116,131.52,131.47,8.0238116]
[1763996886568,8.0238116,131.51,131.47,0.67]
[1763996886786,8.0238116,131.52,131.48,18.48263929]
[1763996886948,8.0238116,131.52,131.49,3.5]
[1763996887517,0.66,131.52,131.49,3.5]
[1763996887644,8.0238116,131.53,131.49,3.5]
[1763996887980,0.66,131.55,131.49,3.5]
[1763996888156,8.0238116,131.52,131.49,3.5]
[1763996888544,8.0238116,131.5,131.49,3.5]
[1763996888943,8.0238116,131.51,131.49,3.5]
[1763996889275,8.0238116,131.52,131.49,3.5]
[1763996889483,8.0238116,131.51,131.49,3.5]
[1763996889640,8.0238116,131.5,131.49,3.5]
[1763996889843,8.0238116,131.5,131.43,16.308864]
[1763996889844,8.0238116,131.5,131.43,9.78882769]
[1763996890142,8.0238116,131.46,131.43,4.17]
[1763996890342,2.14216156,131.58,131.45,8.0238116]
[1763996890641,8.0238116,131.51,131.47,9.78882769]
[1763996890843,8.0238116,131.51,131.47,13.28882769]
[1763996891040,8.0238116,131.53,131.49,9.78882769]
[1763996891351,8.0238116,131.57,131.51,9.78882769]
[1763996891554,175.44047588,131.68,131.54,17.81263929]
[1763996891555,8.0238116,131.59,131.54,17.81263929]
[1763996891757,8.0238116,131.59,131.54,9.78882769]
[1763996891952,8.0238116,131.58,131.54,10.45882769]
[1763996892153,8.0238116,131.56,131.52,3.5]
[1763996892363,8.0238116,131.53,131.52,3.5]
[1763996892740,8.6838116,131.53,131.47,0.67]
[1763996892942,8.0238116,131.52,131.48,3.5]
[1763996893163,8.0238116,131.51,131.48,3.5]
[1763996893790,16.308864,131.57,131.46,9.78882769]